[Event "55th Ladies GM 2024"]
[Site "Belgrade9"]
[Date "2024.03.04"]
[Round "3.5"]
[White "Xu, Yuanyuan"]
[Black "Kubicka, Anna"]
[Result "1-0"]
[ECO "E90"]
[WhiteElo "2288"]
[BlackElo "2278"]
[Annotator "TA"]
[PlyCount "93"]
[EventDate "2024.03.02"]
[EventType "tourn"]
[EventCountry "SRB"]
[SourceTitle "playchess.com"]
[Source "ChessBase"]
[SourceQuality "1"]
[TimeControl "40/5400+30:1800+30"]

{[%evp 15,93,0,0,0,9,8,21,24,46,0,40,-70,-69,-43,-54,-95,-73,-93,-98,-93,-59,-77,-65,-75,-79,-70,50,61,88,79,75,89,106,74,84,96,176,211,217,208,206,235,235,227,229,237,241,244,254,247,406,362,520,504,512,520,527,524,672,658,646,645,993,820,828,839,1317,1085,1999,2135,12841,5397,12708,7557,5097,5706,29981,29982,29984,29984]} 1. d4 {[%emt 0:00:04]} Nf6 {[%emt 0:00:11]} 2. Nf3 {[%emt 0:00:07]} g6 {[%emt 0:00:08]} 3. c4 {[%emt 0:00:08]} Bg7 {[%emt 0:00:06]} 4. Nc3 {[%emt 0:00:05]} O-O {[%emt 0:00:19]} 5. e4 {[%emt 0:00:07]} d6 {[%emt 0:00:18]} 6. Be3 {[%emt 0:00:07]} Nbd7 {[%emt 0:03:30]} 7. h3 {[%emt 0:06:16]} e5 {[%emt 0:00:38]} 8. dxe5 {[%emt 0:13:11]} dxe5 {[%emt 0:00:29]} 9. Qd2 {[%emt 0:04:40]} Qe7 {[%emt 0:07:18]} 10. Nd5 {[%emt 0:06:09]} Nxd5 {[%emt 0:02:23]} 11. cxd5 {[%emt 0:00:03] The position is equal.} f5 {[%emt 0:05:22] aiming for ...f4.} 12. Bc4 {[%emt 0:07:38]} (12. Qc3 $1 $14 {is superior.}) 12... Qd6 {[%emt 0:11:01] Strongly threatening ...f4.} 13. Bh6 {[%emt 0:02:04]} (13. Qc2 $14) 13... fxe4 $15 {[%emt 0:10:04]} 14. Bxg7 {[%emt 0:05:48]} Kxg7 {[%emt 0:00:22]} 15. Nh2 {[%emt 0:18:49]} Nb6 {[%emt 0:13:21]} 16. Bb3 {[%emt 0:01:46][%cal Bc4b3,Bb3d5,Bd5e4][%mdl 32]} a5 {[%emt 0:02:43]} 17. a3 {[%emt 0:02:24]} c6 {[%emt 0:02:25]} 18. Rd1 {[%emt 0:00:18]} cxd5 {[%emt 0:15:25]} 19. Bxd5 {[%emt 0:00:12] [#]} e3 $1 {[%emt 0:01:48]} 20. fxe3 {[%emt 0:01:36] [#]} e4 {[%emt 0:00:14] Dodges Nf3} 21. Qd4+ $14 {[%emt 0:03:52]} (21. Bxe4 $2 Qg3+ 22. Ke2 Rf2+ 23. Kd3 Rxd2+ $19) 21... Rf6 {[%emt 0:01:58] White leaves nothing to chance now.} 22. Bxe4 {[%emt 0:04:56]} (22. Qxe4 $2 Qg3+ 23. Kd2 Nxd5 $19) 22... Qg3+ {[%emt 0:02:23]} 23. Kd2 {[%emt 0:00:08]} Be6 {[%emt 0:14:13]} 24. Rdf1 {[%emt 0:09:46]} (24. Qxb6 $2 Qf2+ 25. Kc1 Rc8+ 26. Kb1 Ba2+ 27. Kxa2 Rxb6 $19) 24... Nc4+ {[%emt 0:02:58]} 25. Ke2 {[%emt 0:00:37] The board is on fire.} Raf8 {[%emt 0:01:19]} (25... Qe5 $16 {was called for.}) 26. Rxf6 $1 $40 {[%emt 0:04:13][%mdl 128] White attacks with force.} Rxf6 {[%emt 0:00:02]} 27. Rf1 {[%emt 0:00:12]} (27. Bxb7 {gets mated.} Qf2+ 28. Kd3 Qd2+ (28... Qxb2 29. Qxb2 Nxb2+ 30. Kd4 $11) 29. Ke4 Qc2+ (29... Qxb2 30. Qxb2 Nxb2 31. Bd5 $17) 30. Qd3 Bf5+ (30... Qxg2+ $2 31. Kd4 $19) 31. Kf3 Bxd3+ (31... Qxd3 32. Kg3 Qd6+ 33. Kf2 Be4+ 34. Nf3 Bxb7 35. h4 Bxf3 36. gxf3 Qd2+ 37. Kg3 Nxe3 38. Rg1) 32. Kg4 Qf2 (32... Nxe3+ 33. Kg5 Rf5+ 34. Kh4 Qf2+ 35. g3 Rh5#) 33. g3 Qf5+ 34. Kh4 Qh5#) 27... Qe5 {[%emt 0:01:48]} 28. Qxe5 {[%emt 0:02:09]} ({Much less strong is} 28. Bxb7 $6 Qxd4 29. exd4 Bf5 $16) 28... Nxe5 {[%emt 0:00:02]} 29. Rxf6 {[%emt 0:00:09]} (29. Bxb7 $2 {loses.} Bc4+ 30. Ke1 Rb6 $19 (30... Bxf1 $2 31. Nxf1 Rb6 32. Bd5 $19)) 29... Kxf6 {[%emt 0:00:01]} 30. Bxb7 {[%emt 0:00:08][%mdl 4096] Endgame. KBN-KBN} Nc4 {[%emt 0:00:07]} 31. b4 {[%emt 0:01:08]} a4 {[%emt 0:01:21]} 32. Bc6 {[%emt 0:00:08]} Nb6 $2 {[%emt 0:01:33]} (32... Nxa3 {is a better defense.} 33. Bxa4 Bf5) 33. Nf3 {[%emt 0:01:45]} Bb3 {[%emt 0:00:23]} (33... Nc4 {was worth a try.} 34. Bxa4 Nxa3) 34. Nd2 {[%emt 0:00:16]} Ke5 {[%emt 0:00:35]} 35. Kd3 {[%emt 0:00:49] Against Bc2+} Be6 {[%emt 0:00:22]} 36. Bb5 {[%emt 0:01:34]} Bf5+ {[%emt 0:00:30]} 37. e4 {[%emt 0:00:36]} Be6 {[%emt 0:00:38]} 38. Nc4+ {[%emt 0:01:23]} Bxc4+ {[%emt 0:00:32]} 39. Bxc4 {[%emt 0:00:02] KB-KN} Nc8 {[%emt 0:00:24]} 40. Bb5 {[%emt 0:00:40]} Nd6 {[%emt 0:00:42]} 41. Bc6 {[%emt 0:30:42]} g5 {[%emt 0:00:48]} 42. b5 {[%emt 0:00:00][%cal Bb4b5,Bb5b6][%mdl 32] b6 would kill now.} Nc8 {[%emt 0:04:20]} 43. Kc4 {[%emt 0:00:00]} Kd6 {[%emt 0:00:38]} 44. Kd4 {[%emt 0:00:00] White wants to mate with e5+.} Ne7 {[%emt 0:00:20]} 45. e5+ {[%emt 0:00:00]} Ke6 {[%emt 0:00:13]} 46. Kc5 {[%emt 0:00:00]} Kxe5 {[%emt 0:06:15]} 47. b6 {[%emt 0:00:00] Weighted Error Value: White=0.14 (very precise) /Black=0.36.  Mistake:       	White=2     	Black=4      Inaccurate:     	White=2     	Black=3      OK:         	White=8     	Black=9      Best:        	White=10    	---        Strong:       	White=1     	---        Brilliant:      	---       	Black=1} 1-0

[Event "55th Ladies GM 2024"]
[Site "Belgrade9"]
[Date "2024.03.05"]
[Round "4.1"]
[White "Pogorelskikh, Sofia"]
[Black "Kubicka, Anna"]
[Result "0-1"]
[ECO "C76"]
[WhiteElo "2214"]
[BlackElo "2278"]
[Annotator "TA"]
[PlyCount "98"]
[EventDate "2024.03.02"]
[EventType "tourn"]
[EventCountry "SRB"]
[SourceTitle "playchess.com"]
[Source "ChessBase"]
[SourceQuality "1"]
[TimeControl "40/5400+30:1800+30"]

{[%evp 14,98,41,24,42,26,42,33,40,31,49,43,57,42,48,41,29,0,0,0,0,0,11,0,0,7,31,18,10,0,-8,-25,37,-40,-48,-92,-91,-224,-224,-277,-218,-263,-267,-287,-292,-277,-233,-534,-451,-493,-484,-385,-453,-714,-441,-481,-491,-918,-1045,-1077,-1056,-1578,-1317,-1877,-859,-1746,-1115,-29994,-737,-774,-758,-720,-539,-523,-516,-524,-512,-586,-576,-583,-552,-568,-568,-566,-579,-551,-549]} 1. e4 {[%emt 0:00:07]} e5 {[%emt 0:00:08]} 2. Nf3 {[%emt 0:00:11]} Nc6 {[%emt 0:00:08]} 3. Bb5 {[%emt 0:00:14]} a6 {[%emt 0:00:09]} 4. Ba4 {[%emt 0:00:14]} d6 {[%emt 0:00:29]} 5. c3 {[%emt 0:01:54]} Bd7 {[%emt 0:00:27]} 6. O-O {[%emt 0:01:50]} g6 {[%emt 0:00:16]} 7. d4 {[%emt 0:01:09]} Bg7 {[%emt 0:00:11]} 8. h3 {[%emt 0:01:04]} Nge7 {[%emt 0:00:20]} 9. dxe5 {[%emt 0:01:22]} dxe5 {[%emt 0:02:29]} 10. Be3 {[%emt 0:02:45]} O-O {[%emt 0:00:52] White is slightly better.} 11. Nbd2 {[%emt 0:01:13]} h6 {[%emt 0:00:37]} 12. Re1 {[%emt 0:07:32]} Kh7 {[%emt 0:01:45]} 13. Bc2 {[%emt 0:01:57]} Qe8 {[%emt 0:03:37]} 14. Nf1 {[%emt 0:09:10]} Rd8 {[%emt 0:01:17][%cal Od7h3]} 15. Qc1 {[%emt 0:06:27]} b6 {[%emt 0:08:53]} 16. N3h2 {[%emt 0:06:11][%cal Bf3h2,Bh2f1,Bf1d2][%mdl 32]} f5 {[%emt 0:09:11]} 17. exf5 {[%emt 0:06:32]} Nxf5 {[%emt 0:13:48]} 18. Ng3 {[%emt 0:18:55]} Nxg3 {[%emt 0:07:12]} 19. fxg3 {[%emt 0:00:08]} Bf5 {[%emt 0:02:42]} 20. g4 {[%emt 0:04:29]} Bd3 {[%emt 0:04:41]} 21. Nf1 {[%emt 0:06:53]} e4 {[%emt 0:04:27]} 22. Nd2 $1 {[%emt 0:02:17]} Rf7 {[%emt 0:08:43]} (22... Qe5 $11) 23. Kh1 {[%emt 0:03:40]} (23. Bxd3 $1 $14 Rxd3 24. Qc2) 23... Re7 $1 $36 {[%emt 0:01:44][%mdl 2048] Black has some pressure.} 24. Nb3 {[%emt 0:04:24]} Ne5 {[%emt 0:03:41][%cal Bc6e5,Be5d3,Bd3f2][%mdl 32] Black is more active.} 25. Rd1 {[%emt 0:04:57] White is weak on the light squares. Loses the game.} (25. Nd2 $17 {was worth a try.}) 25... c5 $19 {[%emt 0:01:32]} ({Resist} 25... Nc4 26. Bg1) 26. a4 {[%emt 0:01:21]} a5 {[%emt 0:01:44]} 27. Nd2 {[%emt 0:00:54]} Be2 {[%emt 0:03:08]} 28. Rg1 {[%emt 0:00:26]} Nd3 {[%emt 0:01:01] Against Qe1} 29. Qb1 {[%emt 0:01:20]} Qf7 {[%emt 0:06:34] Hoping for ...Nf2+.} 30. Qa2 $2 {[%emt 0:02:24]} (30. Bb3 {is more resistant.} Qf6 31. Re1 Nxe1 32. Qxe1) 30... Nf2+ {[%emt 0:01:27]} 31. Kh2 {[%emt 0:01:41]} Be5+ {[%emt 0:02:01]} 32. g3 {[%emt 0:00:01]} Qf6 {[%emt 0:01:27]} 33. Rg2 {[%emt 0:01:38]} (33. Nxe4 $142 Nxe4 34. Bxe4) 33... Qh4 {[%emt 0:03:07]} 34. Bxf2 {[%emt 0:00:41]} Rxd2 {[%emt 0:00:21]} 35. Kg1 {[%emt 0:01:10]} (35. Be1 $142 Rxc2 36. Qb3 Bxg4 37. Qxc2 Qxh3+ (37... Bxh3 $2 38. Qe2 $19) 38. Kg1) 35... Qxh3 {[%emt 0:00:28]} 36. Bxe4 {[%emt 0:00:23]} Qxg4 {[%emt 0:00:49]} 37. Bd5 {[%emt 0:00:45]} c4 {[%emt 0:01:49]} 38. Bc6 {[%emt 0:00:32]} Rd6 {[%emt 0:04:41]} (38... Bd1 $142 39. Qb1 Rd3) 39. Bb5 {[%emt 0:00:30]} Rf7 {[%emt 0:00:22][%cal Of7f2] [#] ( -> ...Rxf2!)} 40. Re1 {[%emt 0:00:32]} Rdf6 {[%emt 0:00:13]} (40... Rxf2 $142 41. Bc6 Rdf6 42. Qb1 Rxg2+ (42... Bxg3 {is a self mate.} 43. Be4 Rxg2+ 44. Bxg2 Bf2+ 45. Kh2 Qh4+ 46. Bh3 Qg3+ 47. Kh1 Qxh3#) 43. Bxg2 Qxg3 (43... Bxg3 $2 44. Qe4 $19) 44. Qf5 Rxf5 45. Rxe2 Qh2#) 41. Rxe2 {[%emt 0:09:42] Black is clearly winning.} Qxe2 {[%emt 0:00:39]} 42. Qxc4 {[%emt 0:04:21]} Qd1+ {[%emt 0:03:06]} 43. Qf1 {[%emt 0:00:18]} Qxf1+ {[%emt 0:00:16]} 44. Bxf1 {[%emt 0:00:20] [#]} Bxg3 $1 {[%emt 0:01:13][%mdl 512]} 45. Rxg3 {[%emt 0:00:14]} (45. Bxg3 Rxf1+) 45... Rxf2 {[%emt 0:00:05] KRR-KRB} 46. Bd3 {[%emt 0:00:09]} R2f6 {[%emt 0:00:45]} (46... Rxb2 47. Bxg6+ Kg8 48. Bxf7+ Kxf7 49. Rd3 $17) 47. b4 {[%emt 0:00:12]} axb4 {[%emt 0:01:46]} 48. cxb4 {[%emt 0:00:05]} Ra7 {[%emt 0:00:20]} 49. Bb5 {[%emt 0:00:23]} h5 {[%emt 0:00:41] Weighted Error Value: White=0.99/Black=0.59.  Mistake:       	White=5     	Black=1      Inaccurate:     	White=2     	Black=1      OK:         	White=6     	Black=18     Best:        	White=3     	---        Strong:       	White=1     	Black=1} 0-1

[Event "55th Ladies GM 2024"]
[Site "Belgrade9"]
[Date "2024.03.05"]
[Round "4.2"]
[White "Djukic, Sandra"]
[Black "Xu, Yuanyuan"]
[Result "1-0"]
[ECO "D33"]
[WhiteElo "2127"]
[BlackElo "2288"]
[Annotator "TA"]
[PlyCount "83"]
[EventDate "2024.03.02"]
[EventType "tourn"]
[EventCountry "SRB"]
[SourceTitle "playchess.com"]
[Source "ChessBase"]
[SourceQuality "1"]
[TimeControl "40/5400+30:1800+30"]

{[%evp 16,83,50,55,68,59,64,58,92,107,106,50,60,39,32,43,48,26,35,27,52,63,87,36,48,40,545,544,527,555,550,541,568,529,664,621,614,622,624,567,597,609,564,608,587,592,605,605,589,572,567,539,537,518,511,512,508,497,518,518,544,544,544,544,552,552,954,942,1659,564]} 1. d4 {[%emt 0:00:04]} d5 {[%emt 0:00:06]} 2. c4 {[%emt 0:00:12]} e6 {[%emt 0:00:27]} 3. Nf3 {[%emt 0:01:16]} c5 {[%emt 0:04:29]} 4. cxd5 {[%emt 0:03:30]} exd5 {[%emt 0:00:11]} 5. g3 {[%emt 0:00:05]} Nc6 {[%emt 0:00:32]} 6. Bg2 {[%emt 0:00:18]} Nf6 {[%emt 0:02:32]} 7. O-O {[%emt 0:00:48]} Be6 {[%emt 0:18:30]} 8. Nc3 {[%emt 0:02:13]} h6 {[%emt 0:07:30]} 9. b3 {[%emt 0:10:03]} Rc8 {[%emt 0:07:49]} 10. Bb2 {[%emt 0:00:17]} cxd4 {[%emt 0:00:23]} 11. Nxd4 {[%emt 0:07:42]} Nxd4 {[%emt 0:01:33] White is slightly better.} 12. Qxd4 {[%emt 0:00:05]} Bc5 {[%emt 0:00:05]} 13. Qd3 {[%emt 0:07:46]} (13. Qa4+ $16 Kf8 14. Rac1) 13... O-O $14 {[%emt 0:01:19]} 14. Rad1 {[%emt 0:10:45][%cal Oe2e3]} (14. Rac1 $5) 14... Qe7 {[%emt 0:05:36]} 15. e3 {[%emt 0:24:37]} ({Of course not} 15. Bxd5 Rfd8 16. Qf3 Bg4 $17) 15... Rfd8 {[%emt 0:02:08]} 16. Nb5 {[%emt 0:06:27]} Bg4 {[%emt 0:11:44]} 17. Rc1 {[%emt 0:00:06]} h5 {[%emt 0:01:05]} 18. Nd4 {[%emt 0:05:35]} Qd7 {[%emt 0:02:14]} 19. Nf3 {[%emt 0:04:41] White is more active.} (19. Ne2 $16) 19... Bf5 {[%emt 0:05:08]} 20. Qd1 {[%emt 0:00:19]} Ng4 $2 {[%emt 0:05:12][%mdl 8192] [#] A mistake that costs the game.} (20... Qe7 $14) 21. Rxc5 $1 $18 {[%emt 0:00:41][%mdl 512] White is clearly winning.} Rxc5 {[%emt 0:01:16]} 22. Qd4 $1 {[%emt 0:00:04][%csl Gb2,LRc5,LRg7][%cal Rd4g7]} f6 {[%emt 0:00:33]} 23. Qxc5 {[%emt 0:00:06]} Rc8 {[%emt 0:00:12]} 24. Qd4 {[%emt 0:00:27]} Rc2 {[%emt 0:00:46]} 25. h3 {[%emt 0:02:04]} Nh6 {[%emt 0:05:59]} 26. Ne1 {[%emt 0:00:08][%cal Bf3e1,Be1d3,Bd3b4,Bb4d5,Bd5f4][%mdl 32]} Rc7 {[%emt 0:05:39]} 27. Qxd5+ {[%emt 0:00:06]} Nf7 {[%emt 0:00:38]} 28. Qxd7 {[%emt 0:00:18]} Bxd7 {[%emt 0:00:15]} 29. Nd3 {[%emt 0:03:10]} Rc2 {[%emt 0:00:43]} 30. Bd4 {[%emt 0:00:53]} b6 {[%emt 0:04:16]} 31. a4 {[%emt 0:01:37]} Be6 {[%emt 0:01:08]} 32. Nb4 {[%emt 0:00:13]} Rd2 {[%emt 0:02:15]} 33. Nd5 {[%emt 0:00:33]} Ng5 {[%emt 0:00:31]} 34. h4 {[%emt 0:03:12]} Nh3+ {[%emt 0:00:07]} 35. Bxh3 {[%emt 0:01:42]} Bxh3 {[%emt 0:00:02]} 36. Rc1 {[%emt 0:00:35]} Be6 {[%emt 0:02:07]} 37. Nf4 {[%emt 0:01:12][%csl LRe6,LRh5]} Bxb3 {[%emt 0:00:35]} 38. Rc8+ {[%emt 0:00:21]} Kh7 {[%emt 0:00:44]} 39. Rc7 {[%emt 0:00:30]} Kh6 {[%emt 0:01:51]} 40. Rxa7 {[%emt 0:00:57]} g5 {[%emt 0:01:09]} 41. hxg5+ {[%emt 0:30:37]} fxg5 {[%emt 0:30:03]} 42. Bg7+ {[%emt 0:00:11] Weighted Error Value: White=0.16 (very precise) /Black=0.41.  Loses game:     	---       	Black=1      Mistake:       	White=2     	---        Inaccurate:     	---       	Black=3      OK:         	White=15    	Black=10     Best:        	White=1     	Black=1      Brilliant:      	White=1     	---} 1-0

[Event "55th Ladies GM 2024"]
[Site "Belgrade9"]
[Date "2024.03.05"]
[Round "4.3"]
[White "Doluhanova, Evgeniya"]
[Black "Lu, Miaoyi"]
[Result "0-1"]
[ECO "D40"]
[WhiteElo "2261"]
[BlackElo "2392"]
[Annotator "TA"]
[PlyCount "116"]
[EventDate "2024.03.02"]
[EventType "tourn"]
[EventCountry "SRB"]
[SourceTitle "playchess.com"]
[Source "ChessBase"]
[SourceQuality "1"]
[TimeControl "40/5400+30:1800+30"]

{[%evp 16,116,0,-21,-19,-78,28,29,38,46,48,56,56,47,48,61,53,57,89,15,12,5,89,54,64,45,43,50,75,33,35,31,39,19,73,0,33,33,69,54,102,106,112,105,108,100,105,103,189,183,153,151,156,132,131,133,136,51,51,0,0,0,0,0,0,-100,-91,-95,-98,-85,-105,-97,-88,-95,-99,-91,-91,-91,-96,-131,-131,-219,-217,-228,-207,-264,-259,-260,-213,-207,-214,-1199,-1199,-883,-806,-782,-139,-154,-124,-29975,-4141,-4133,-4084]} 1. Nf3 {[%emt 0:00:15]} Nf6 {[%emt 0:00:06]} 2. c4 {[%emt 0:00:27]} e6 {[%emt 0:00:09]} 3. Nc3 {[%emt 0:00:20]} d5 {[%emt 0:00:10]} 4. e3 {[%emt 0:00:05]} c5 {[%emt 0:00:09]} 5. d4 {[%emt 0:00:53]} Nc6 {[%emt 0:00:06]} 6. Be2 {[%emt 0:10:36]} dxc4 {[%emt 0:01:44]} 7. O-O {[%emt 0:00:46]} a6 {[%emt 0:01:39]} 8. Bxc4 {[%emt 0:05:05]} b5 {[%emt 0:00:06]} 9. Bb3 {[%emt 0:00:55]} Bb7 {[%emt 0:02:04]} 10. a4 {[%emt 0:09:12]} (10. Qe2 $11) 10... cxd4 {[%emt 0:14:05]} (10... b4 $17 11. Ne2 Na5) 11. axb5 $11 {[%emt 0:03:57]} (11. exd4 b4 12. Ne2 Na5 $15) 11... dxc3 {[%emt 0:07:19] Weiß hat minimalen Vorteil.} 12. bxc6 {[%emt 0:00:13]} Qxd1 {[%emt 0:15:07]} 13. Rxd1 {[%emt 0:00:58]} Bxc6 {[%emt 0:00:03]} 14. bxc3 {[%emt 0:01:33]} Nd7 {[%emt 0:08:03] Es drohte Ne5} 15. Nd4 {[%emt 0:01:10]} Bb7 {[%emt 0:00:02]} 16. Ba4 {[%emt 0:01:11][%cal Od4e6] Schwarz muss nun Nxe6! beachten.} O-O-O $1 {[%emt 0:00:06]} 17. Bb2 {[%emt 0:15:14]} (17. Bc2 $16) 17... Nc5 {[%emt 0:06:04]} 18. Bc2 {[%emt 0:00:27]} Be7 {[%emt 0:01:00]} (18... e5 $11) 19. c4 {[%emt 0:00:39]} Rd7 {[%emt 0:03:09]} 20. f3 {[%emt 0:04:55]} Rhd8 {[%emt 0:00:49]} 21. Bc3 {[%emt 0:00:45]} Bd6 {[%emt 0:04:59]} 22. Ra5 {[%emt 0:12:41][%cal Od1b1]} (22. Bxh7 $6 g6 $15) 22... g6 {[%emt 0:02:27]} 23. Rb1 {[%emt 0:04:46]} Rc7 {[%emt 0:06:13]} 24. Raa1 {[%emt 0:04:38]} Rcd7 {[%emt 0:00:49]} (24... e5 $11 {hält das Gleichgewicht.} 25. Ne2 Rcd7) 25. Ra5 {[%emt 0:12:40]} (25. Nb3 $16) 25... e5 {[%emt 0:04:57]} 26. Ne2 {[%emt 0:01:00][%cal Oc3e5]} f6 {[%emt 0:03:23]} 27. Bb4 {[%emt 0:00:37]} Ne6 {[%emt 0:02:54]} (27... Rc7 $14) 28. c5 $36 {[%emt 0:05:34][%mdl 2048] Schwarz steht unter starkem Druck.} Bc7 {[%emt 0:03:37] [#]} 29. c6 $1 {[%emt 0:00:24][%mdl 512]} Bxc6 {[%emt 0:00:27]} 30. Rxa6 {[%emt 0:00:13]} Kb7 {[%emt 0:06:26]} 31. Raa1 {[%emt 0:02:46][%cal Ba6a1,Ba1b1,Bb1d1][%mdl 32] Bb3 ist eine echte Drohung.} Kc8 {[%emt 0:00:44]} (31... Rb8 $16 {ist wohl besser.}) 32. Bb3 $18 {[%emt 0:00:44]} Ng7 {[%emt 0:02:06] [#]} 33. Rc1 $1 {[%emt 0:00:27]} Kb7 {[%emt 0:00:38]} 34. Bc4 {[%emt 0:00:41]} Ra8 {[%emt 0:00:48] Lässt Ba6+ nicht zu} 35. Rab1 {[%emt 0:00:33] Be7+ wäre nun fies.} Kc8 {[%emt 0:00:03]} 36. Bf8 {[%emt 0:00:23]} (36. Bg8 $16 Bd5 37. Bxh7) 36... Kd8 $14 {[%emt 0:02:12]} 37. Rd1 {[%emt 0:00:16]} (37. Bg8 $14 Ra6 38. e4 (38. Bxh7 Ne6 $17)) 37... Nf5 $11 {[%emt 0:00:24]} 38. Kf2 {[%emt 0:00:46]} Rxd1 {[%emt 0:01:38]} 39. Rxd1+ {[%emt 0:00:05]} Ke8 {[%emt 0:00:02]} 40. Bb4 {[%emt 0:01:02]} (40. Bc5 $11 {bleibt in der Remisbreite.}) 40... Bb6 $17 {[%emt 0:02:34]} 41. Bd2 {[%emt 0:05:25] [#]} Ra3 $1 {[%emt 0:04:44][%cal Rf5e3] Schwarz steht aktiver.} 42. Rb1 {[%emt 0:01:30]} ({Jedoch nicht} 42. Nc3 $2 Rxc3 43. Bxc3 Nxe3 $19 (43... Bxe3+ 44. Ke2 $16)) 42... Bxe3+ {[%emt 0:00:58]} 43. Bxe3 {[%emt 0:00:08]} Nxe3 {[%emt 0:26:57]} 44. Rb6 {[%emt 0:09:55]} Kd7 {[%emt 0:00:00]} ({Bitte nicht} 44... Nxc4 $6 45. Rxc6 Nb2 46. Rxf6 $11) 45. Bg8 {[%emt 0:02:08]} h6 {[%emt 0:00:00]} 46. Be6+ {[%emt 0:05:31]} Kc7 {[%emt 0:00:00]} 47. Rb1 {[%emt 0:00:30]} f5 {[%emt 0:00:00]} 48. Bb3 {[%emt 0:02:46]} (48. g3 $17) 48... f4 $19 {[%emt 0:00:00]} 49. Nc3 {[%emt 0:02:17]} g5 {[%emt 0:00:00]} 50. h3 {[%emt 0:02:34]} h5 {[%emt 0:00:00]} 51. Ne2 {[%emt 0:02:24]} g4 {[%emt 0:00:00]} 52. hxg4 {[%emt 0:00:45]} hxg4 {[%emt 0:00:00] Droht ...Kd6 und aus.} 53. g3 $2 {[%emt 0:00:36]} (53. Be6) 53... gxf3 {[%emt 0:00:00]} 54. gxf4 {[%emt 0:00:33]} Ng4+ {[%emt 0:00:00]} 55. Ke1 {[%emt 0:00:12]} fxe2 $2 {[%emt 0:00:00]} (55... f2+ $19 {ist viel giftiger.} 56. Kf1 Kd6 (56... Be4 $2 57. Rc1+ Kd7 58. Rc3 $19) 57. fxe5+ Kxe5) 56. fxe5 $17 {[%emt 0:00:38]} Bf3 {[%emt 0:00:00]} 57. e6 {[%emt 0:00:17][%mdl 8192]} (57. Bc4 $17) 57... Ne3 {[%emt 0:01:00][%cal Oa3b3] ( -> ...Rxb3!)} 58. Kd2 {[%emt 0:00:58]} Ng2 {[%emt 0:00:11] Kein schönes Erlebnis für Weiß.   Gewichteter Fehlerwert: Weiß=0.42/Schwarz=0.28 (präzise) .  Verlustzug:     	Weiß=1     	---        Fehler:       	Weiß=8     	Schwarz=5     Ungenau:       	Weiß=3     	Schwarz=2     OK:         	Weiß=13    	Schwarz=19    Bester:       	Weiß=6     	Schwarz=8     Stark:        	---       	Schwarz=2} 0-1